fUST/lending_fUST_20250731
["ID","MTS","AMOUNT","RATE_DAILY","PERIOD"]
[376375871,1753954239513,-460.0,0.00019178,2]
[376375873,1753954239522,-460.0,0.00019178,2]
[376375875,1753954239532,-460.0,0.00019178,2]
[376375876,1753954239541,-460.0,0.00019178,2]
[376375878,1753954239550,-460.0,0.00019178,2]
[376375880,1753954239560,-460.0,0.00019178,2]
[376375882,1753954239569,-460.0,0.00019178,2]
[376375884,1753954239579,-535.76689433,0.00019178,2]
[376375886,1753954239588,-216.24187738,0.00019178,2]
[376375888,1753954239597,-460.0,0.00019178,2]
[376375889,1753954239606,-460.0,0.00019178,2]
[376375891,1753954239616,-460.0,0.00019178,2]
[376375893,1753954239625,-500.0,0.00019178,2]
[376375895,1753954239635,-460.0,0.00019178,2]
[376375897,1753954239644,-560.43,0.00019178,2]
[376375899,1753954239653,-460.0,0.00019178,2]
[376375900,1753954239663,-460.0,0.00019178,2]
[376375902,1753954239672,-460.0,0.00019178,2]
[376375904,1753954239681,-460.0,0.00019178,2]
[376375906,1753954239690,-361.19748624,0.00019178,2]
[376375908,1753954239699,-460.0,0.00019178,2]
[376375910,1753954239709,-460.0,0.00019178,2]
[376375911,1753954239718,-203.44712819,0.00019178,2]
[376375913,1753954239728,-460.0,0.00019178,2]
[376375915,1753954239737,-460.0,0.00019178,2]
[376375917,1753954239747,-460.0,0.00019178,2]
[376375919,1753954239757,-460.0,0.00019178,2]
[376375921,1753954239766,-460.0,0.00019178,2]
[376375922,1753954239775,-460.0,0.00019178,2]
[376375924,1753954239784,-460.0,0.00019178,2]
[376375926,1753954239793,-460.0,0.00019178,2]
[376375928,1753954239803,-460.0,0.00019178,2]
[376375930,1753954239813,-460.0,0.00019178,2]
[376375932,1753954239823,-460.0,0.00019178,2]
[376375933,1753954239833,-460.0,0.00019178,2]
[376375935,1753954239842,-477.47910638,0.00019178,2]
[376375937,1753954239852,-460.0,0.00019178,2]
[376375939,1753954239862,-460.0,0.00019178,2]
[376375941,1753954239871,-460.0,0.00019178,2]
[376375943,1753954239880,-492.97,0.00019178,2]
[376375945,1753954239889,-460.0,0.00019178,2]
[376375946,1753954239898,-460.0,0.00019178,2]
[376375948,1753954239907,-460.0,0.00019178,2]
[376375950,1753954239916,-460.0,0.00019178,2]
[376375952,1753954239925,-460.76438667,0.00019178,2]
[376375954,1753954239934,-460.0,0.00019178,2]
[376375955,1753954239943,-460.0,0.00019178,2]
[376375957,1753954239952,-460.0,0.00019178,2]
[376375959,1753954239962,-460.0,0.00019178,2]
[376375961,1753954239971,-460.0,0.00019178,2]
[376375963,1753954239980,-232.10493919,0.00019178,2]
[376375964,1753954239989,-460.0,0.00019178,2]
[376375966,1753954239998,-460.0,0.00019178,2]
[376375968,1753954240008,-460.0,0.00019178,2]
[376375970,1753954240016,-460.0,0.00019178,2]
[376375972,1753954240026,-460.0,0.00019178,2]
[376375974,1753954240035,-460.0,0.00019178,2]
[376375976,1753954240044,-460.0,0.00019178,2]
[376375977,1753954240053,-460.0,0.00019178,2]
[376375979,1753954240062,-460.0,0.00019178,2]
[376375981,1753954240071,-460.0,0.00019178,2]
[376375983,1753954240081,-460.0,0.00019178,2]
[376375985,1753954240090,-460.0,0.00019178,2]
[376375987,1753954240098,-460.0,0.00019178,2]
[376375989,1753954240107,-460.0,0.00019178,2]
[376375991,1753954240117,-460.0,0.00019178,2]
[376375993,1753954240127,-460.0,0.00019178,2]
[376375995,1753954240136,-460.0,0.00019178,2]
[376375997,1753954240145,-173.6173972,0.00019178,2]
[376375998,1753954240154,-460.0,0.00019178,2]
[376376000,1753954240163,-460.0,0.00019178,2]
[376376002,1753954240172,-460.0,0.00019178,2]
[376376004,1753954240181,-460.0,0.00019178,2]
[376376006,1753954240190,-568.69846706,0.00019178,2]
[376376008,1753954240202,-460.0,0.00019178,2]
[376376010,1753954240211,-183.818179,0.00019178,2]
[376376011,1753954240220,-200.18986227,0.00019452,2]
[376376013,1753954240229,-460.0,0.00019452,2]
[376376015,1753954240239,-460.0,0.00019452,2]
[376376017,1753954240248,-460.0,0.00019452,2]
[376376019,1753954240257,-460.0,0.00019452,2]
[376376021,1753954240266,-547.24,0.00019452,2]
[376376023,1753954240277,-460.0,0.00019452,2]
[376376025,1753954240287,-460.0,0.00019452,2]
[376376027,1753954240296,-460.0,0.00019452,2]
[376376028,1753954240305,-335.36832875,0.00019452,2]
[376376030,1753954240314,-460.0,0.00019452,2]
[376376032,1753954240323,-460.0,0.00019452,2]
[376376034,1753954240333,-460.0,0.00019452,2]
[376376036,1753954240341,-460.0,0.00019452,2]
[376376038,1753954240350,-460.0,0.00019452,2]
[376376040,1753954240360,-460.0,0.00019452,2]
[376376042,1753954240369,-460.0,0.00019452,2]
[376376043,1753954240378,-460.0,0.00019452,2]
[376376045,1753954240388,-460.0,0.00019452,2]
[376376047,1753954240397,-460.0,0.00019452,2]
[376376049,1753954240406,-460.0,0.00019452,2]
[376376051,1753954240416,-460.0,0.00019452,2]
[376376053,1753954240425,-460.0,0.00019452,2]
[376376055,1753954240434,-460.0,0.00019452,2]
[376376057,1753954240444,-460.0,0.00019452,2]
[376376059,1753954240453,-460.0,0.00019452,2]
[376376060,1753954240463,-460.0,0.00019452,2]
[376376062,1753954240472,-460.0,0.00019452,2]
[376376064,1753954240481,-460.0,0.00019452,2]
[376376065,1753954240491,-460.0,0.00019452,2]
[376376066,1753954240502,-460.0,0.00019452,2]
[376376067,1753954240511,-460.0,0.00019452,2]
[376376068,1753954240520,-460.0,0.00019452,2]
[376376069,1753954240529,-460.0,0.00019452,2]
[376376070,1753954240539,-460.0,0.00019452,2]
[376376071,1753954240549,-460.0,0.00019452,2]
[376376072,1753954240558,-460.0,0.00019452,2]
[376376073,1753954240569,-460.0,0.00019452,2]
[376376074,1753954240578,-460.0,0.00019452,2]
[376376075,1753954240588,-411.87386986,0.00019452,2]
[376376076,1753954240597,-460.0,0.00019452,2]
[376376077,1753954240606,-460.0,0.00019452,2]
[376376078,1753954240615,-460.0,0.00019452,2]
[376376079,1753954240625,-450.68760562,0.00019452,2]
[376376080,1753954240634,-460.0,0.00019452,2]
[376376081,1753954240643,-515.54,0.00019452,2]
[376376082,1753954240654,-460.0,0.00019452,2]
[376376083,1753954240663,-460.0,0.00019452,2]
[376376085,1753954240672,-460.0,0.00019452,2]
[376376086,1753954240682,-460.0,0.00019452,2]
[376376087,1753954240691,-460.0,0.00019452,2]
[376376088,1753954240700,-546.0604165,0.00019452,2]
[376376089,1753954240710,-460.0,0.00019452,2]
[376376090,1753954240719,-154.39640782,0.00019452,2]
[376376091,1753954240728,-460.0,0.00019452,2]
[376376092,1753954240737,-460.0,0.00019452,2]
[376376093,1753954240747,-460.0,0.00019452,2]
[376376094,1753954240756,-460.0,0.00019452,2]
[376376095,1753954240766,-460.0,0.00019452,2]
[376376096,1753954240775,-460.0,0.00019452,2]
[376376098,1753954240785,-460.0,0.00019452,2]
[376376100,1753954240794,-460.0,0.00019452,2]
[376376102,1753954240803,-460.0,0.00019452,2]
[376376104,1753954240812,-460.0,0.00019452,2]
[376376106,1753954240821,-460.0,0.00019452,2]
[376376107,1753954240830,-460.0,0.00019452,2]
[376376109,1753954240839,-460.0,0.00019452,2]
[376376111,1753954240849,-460.0,0.00019452,2]
[376376112,1753954240858,-460.0,0.00019452,2]
[376376114,1753954240867,-460.0,0.00019452,2]
[376376116,1753954240876,-482.48081245,0.00019452,2]
[376376118,1753954240885,-460.0,0.00019452,2]
[376376119,1753954240896,-460.0,0.00019452,2]
[376376120,1753954240905,-460.0,0.00019452,2]
[376376121,1753954240916,-460.0,0.00019452,2]
[376376122,1753954240925,-460.0,0.00019452,2]
[376376123,1753954240934,-460.0,0.00019452,2]
[376376124,1753954240944,-460.0,0.00019452,2]
[376376125,1753954240954,-460.0,0.00019452,2]
[376376126,1753954240963,-460.0,0.00019452,2]
[376376127,1753954240973,-460.0,0.00019452,2]
[376376128,1753954240982,-460.0,0.00019452,2]
[376376129,1753954240991,-460.0,0.00019452,2]
[376376130,1753954241001,-205.45,0.00019452,2]
[376376131,1753954241010,-460.0,0.00019452,2]
[376376132,1753954241020,-460.0,0.00019452,2]
[376376133,1753954241030,-200.0,0.00019457,15]
[376376134,1753954241040,-200.0,0.00019457,15]
[376376135,1753954241049,-200.0,0.00019457,15]
[376376136,1753954241058,-200.0,0.00019457,15]
[376376137,1753954241068,-505.44698061,0.00019721,2]
[376376138,1753954241077,-370.9975937,0.00019721,2]
[376376139,1753954241086,-1000.0,0.00019721,2]
[376376140,1753954241095,-500.0,0.00019721,2]
[376376141,1753954241105,-1000.0,0.00019721,2]
[376376142,1753954241113,-500.0,0.00019721,2]
[376376143,1753954241123,-1000.0,0.00019721,2]
[376376144,1753954241133,-460.0,0.00019726,2]
[376376145,1753954241142,-460.0,0.00019726,2]
[376376146,1753954241151,-460.0,0.00019726,2]
[376376147,1753954241160,-460.0,0.00019726,2]
[376376148,1753954241169,-460.0,0.00019726,2]
[376376149,1753954241178,-460.0,0.00019726,2]
[376376150,1753954241187,-460.0,0.00019726,2]
[376376151,1753954241197,-460.0,0.00019726,2]
[376376152,1753954241207,-460.0,0.00019726,2]
[376376153,1753954241217,-562.87169355,0.00019726,2]
[376376154,1753954241226,-460.0,0.00019726,2]
[376376155,1753954241235,-460.0,0.00019726,2]
[376376156,1753954241245,-460.0,0.00019726,2]
[376376157,1753954241253,-460.0,0.00019726,2]
[376376158,1753954241262,-460.0,0.00019726,2]
[376376159,1753954241272,-460.0,0.00019726,2]
[376376160,1753954241283,-460.0,0.00019726,2]
[376376161,1753954241292,-460.0,0.00019726,2]
[376376162,1753954241302,-460.0,0.00019726,2]
[376376163,1753954241311,-460.0,0.00019726,2]
[376376164,1753954241320,-374.36,0.00019726,2]
[376376165,1753954241329,-460.0,0.00019726,2]
[376376166,1753954241338,-377.24,0.00019726,2]
[376376167,1753954241349,-460.0,0.00019726,2]
[376376168,1753954241358,-500.0,0.00019773,2]
[376376169,1753954241367,-1953.07256825,0.000199,2]
[376376170,1753954241376,-1487.24850132,0.0001999,2]
[376376171,1753954241385,-460.0,0.0002,2]
[376376172,1753954241393,-160.12906897,0.0002,2]
[376376173,1753954241403,-460.0,0.0002,2]
[376376174,1753954241422,-460.0,0.0002,2]
[376376175,1753954241433,-460.0,0.0002,2]
[376376176,1753954241443,-460.0,0.0002,2]
[376376177,1753954241452,-460.0,0.0002,2]
[376376178,1753954241461,-437.9,0.0002,2]
[376376179,1753954241471,-460.0,0.0002,2]
[376376180,1753954241480,-460.0,0.0002,2]
[376376181,1753954241490,-460.0,0.0002,2]
[376376182,1753954241500,-460.0,0.0002,2]
[376376183,1753954241510,-460.0,0.00020273,2]
[376376184,1753954241520,-460.0,0.00020273,2]
[376376185,1753954241529,-460.0,0.00020273,2]
[376376186,1753954241540,-228.84,0.00020273,2]
[376376187,1753954241549,-460.0,0.00020273,2]
[376376188,1753954241558,-460.0,0.00020273,2]
[376376189,1753954241568,-460.0,0.00020273,2]
[376376190,1753954241577,-460.0,0.00020547,2]
[376376191,1753954241586,-373.69,0.00020547,2]
[376376192,1753954241595,-460.0,0.00020547,2]
[376376193,1753954241605,-460.0,0.00020547,2]
[376376194,1753954241614,-460.0,0.00020547,2]
[376376195,1753954241623,-460.0,0.00020547,2]
[376376196,1753954241633,-420.0,0.00020791,2]
[376376197,1753954241642,-460.0,0.00020821,2]
[376376198,1753954241651,-460.0,0.00020821,2]
[376376199,1753954241660,-460.0,0.00020821,2]
[376376200,1753954241669,-460.0,0.00020821,2]
[376376201,1753954241678,-460.0,0.00020821,2]
[376376202,1753954241688,-367.0,0.00020892,2]
[376376203,1753954241697,-505.14148021,0.00021064,2]
[376376204,1753954241706,-522.37270513,0.00021095,2]
[376376205,1753954241715,-429.9095233,0.00021095,2]
[376376206,1753954241725,-460.0,0.00021095,2]
[376376207,1753954241734,-185.52,0.00021095,2]
[376376208,1753954241743,-460.0,0.00021095,2]
[376376209,1753954241752,-200.0,0.00021365,15]
[376376210,1753954241761,-200.0,0.00021365,15]
[376376211,1753954241770,-200.0,0.00021365,15]
[376376212,1753954241780,-200.0,0.00021365,15]
[376376213,1753954241789,-320.0,0.00021365,15]
[376376214,1753954241799,-460.0,0.00021369,2]
[376376215,1753954241809,-460.0,0.00021369,2]
[376376216,1753954241820,-999.49231525,0.000215,2]
[376376217,1753954241831,-460.0,0.00021643,2]
[376376218,1753954241840,-460.0,0.00021643,2]
[376376219,1753954241850,-304.704,0.00021726,2]
[376376220,1753954241859,-20083.75697895,0.00021739,2]
[376376221,1753954241948,-1233.78435309,0.00021739,2]
[376376222,1753954241959,-2888.86462427,0.00021739,2]
[376376223,1753954242387,-0.00939679,0.00020037,2]
[376376224,1753954242398,-317.66257007,0.00020037,2]
[376376225,1753954242407,-43.53491617,0.00021739,2]
[376376406,1753954245259,1302.04837884,0.000189,2]
[376376513,1753954246252,-460.0,0.00019178,2]
[376376515,1753954246262,-242.06664328,0.00021097,2]
[376376520,1753954246307,-75.60532358,0.00021097,2]
[376376522,1753954246316,-15323.95590082,0.00021739,2]
[376376524,1753954246328,-500.0,0.00021895,2]
[376376526,1753954246338,-460.0,0.00021917,2]
[376376528,1753954246348,-529.163193,0.00021917,2]
[376376530,1753954246357,-150.05620569,0.00021973,2]
[376376532,1753954246367,-500.0,0.00021973,2]
[376376534,1753954246376,-3785.95745696,0.00021987,2]
[376376536,1753954246385,-1412.72,0.0002199,10]
[376376539,1753954246396,-3453.4327081,0.00021998,2]
[376376541,1753954246405,-363.35159111,0.00022,2]
[376376543,1753954246414,-254.34611378,0.00022,2]
[376376545,1753954246423,-178.04227964,0.00022,2]
[376376547,1753954246433,-151.0,0.00022,2]
[376376549,1753954246443,-264.43198583,0.00022,2]
[376376551,1753954246452,-1602.7,0.00022,7]
[376376553,1753954246462,-151.0,0.00022,7]
[376376555,1753954246471,-12857.89140697,0.00022,7]
[376376557,1753954246483,-1702.54859303,0.00022,7]
[376376559,1753954246492,-4404.28143708,0.00022,2]
[376376606,1753954246930,-0.42713636,0.00022,2]
[376377433,1753954255201,-181.63424312,0.00019178,2]
[376377505,1753954320643,823.84387316,0.00018978,2]
[376377506,1753954320666,20000.0,0.00018978,2]
[376377507,1753954320688,20000.0,0.00018978,2]
[376377508,1753954320710,20000.0,0.00018978,2]
[376377509,1753954320732,20000.0,0.00018978,2]
[376377510,1753954320754,20000.0,0.00018978,2]
[376377511,1753954320776,20000.0,0.00018978,2]
[376377512,1753954320799,20000.0,0.00018978,2]
[376377513,1753954320822,20000.0,0.00018978,2]
[376377514,1753954320845,20000.0,0.00018978,2]
[376377515,1753954320868,20000.0,0.00018978,2]
[376377516,1753954320890,20000.0,0.00018978,2]
[376377517,1753954320911,20000.0,0.00018978,2]
[376377518,1753954320934,20000.0,0.00018978,2]
[376377519,1753954320956,20000.0,0.00018978,2]
[376377520,1753954320977,20000.0,0.00018978,2]
[376377521,1753954320999,20000.0,0.00018978,2]
[376377522,1753954321030,20000.0,0.00018978,2]
[376377523,1753954324399,-576.32,0.00018978,2]
[376377524,1753954341005,5000.0,0.0001882,2]
[376377525,1753954356328,5000.0,0.0001882,2]
[376377526,1753954360480,-163.17976251,0.00018977,2]
[376377527,1753954372367,5000.0,0.0001882,2]
[376377528,1753954388677,5000.0,0.0001882,2]
[376377529,1753954390046,238.41709201,0.00018409,2]
[376377530,1753954404289,5000.0,0.0001882,2]
[376377531,1753954420529,5000.0,0.0001882,2]
[376377532,1753954437054,5000.0,0.0001882,2]
[376377533,1753954454275,5000.0,0.0001882,2]
[376377534,1753954469994,5000.0,0.0001882,2]
[376377535,1753954478958,-480.84404282,0.00018978,2]
[376377536,1753954484157,-175.04443718,0.00018978,2]
[376377537,1753954485796,5000.0,0.0001882,2]
[376377538,1753954486107,-443.53911048,0.00018978,2]
[376377539,1753954487964,-264.11152,0.00018978,2]
[376377540,1753954489599,-318.73404282,0.00018978,2]
[376377541,1753954493118,-460.0,0.00018978,2]
[376377542,1753954498250,-515.42329247,0.00018978,2]
[376377543,1753954504723,-213.61,0.00018977,2]
[376377544,1753954506554,-246.39,0.00018977,2]
[376377545,1753954508361,-442.51635379,0.00018977,2]
[376377548,1753954516220,-277.60177904,0.00018977,2]
[376377549,1753954521475,-19.88186717,0.00018977,2]
[376377550,1753954521498,-241.46379172,0.00018977,2]
[376377551,1753954522862,-58.53620828,0.00018977,2]
[376377552,1753954522884,-241.46379172,0.00018978,2]
[376377553,1753954536667,165.394318,0.00013699,2]
[376377555,1753954547181,-228.62217661,0.000189,2]
[376377556,1753954550000,-460.0,0.000189,2]
[376377557,1753954552963,-235.48106624,0.000189,2]
[376377558,1753954556213,-180.0,0.000189,2]
[376377559,1753954558684,-198.49161327,0.000189,2]
[376377560,1753954565010,-172.7280654,0.000189,2]
[376377561,1753954566836,-43.73352045,0.000189,2]
[376377562,1753954601240,-205.76354787,0.00018878,2]
[376377563,1753954602611,182.137275,0.00018207,2]
[376377564,1753954607160,250.0,0.00018095,2]
[376377565,1753954640474,1534.4294234,0.00018499,2]
[376377567,1753954695238,5000.0,0.0001882,2]
[376377568,1753954710831,5000.0,0.0001882,2]
[376377569,1753954726825,5000.0,0.0001882,2]
[376377570,1753954743553,5000.0,0.0001882,2]
[376377571,1753954760660,5000.0,0.0001882,2]
[376377572,1753954779065,5000.0,0.0001882,2]
[376377573,1753954797233,5000.0,0.0001882,2]
[376377574,1753954814660,5000.0,0.0001882,2]
[376377575,1753954832419,5000.0,0.0001882,2]
[376377576,1753954849521,5000.0,0.0001882,2]
[376377577,1753954851588,-380.78099731,0.000189,2]
[376377578,1753954855497,-267.69345147,0.000189,2]
[376377579,1753954858468,-364.22984587,0.000189,2]
[376377580,1753954858491,-174.77360601,0.00018976,2]
[376377581,1753954860339,-125.22639399,0.00018976,2]
[376377582,1753954860360,-334.77360601,0.00018977,2]
[376377583,1753954863296,-460.0,0.00018977,2]
[376377584,1753954865003,-300.0,0.00018977,2]
[376377585,1753954867586,5000.0,0.0001882,2]
[376377586,1753954868379,-105.22639399,0.00018977,2]
[376377587,1753954868401,-54.77360601,0.00018977,2]
[376377588,1753954870663,-150.13505703,0.00018977,2]
[376377589,1753954870684,-210.50760619,0.00018977,2]
[376377590,1753954874139,-89.49239381,0.00018977,2]
[376377591,1753954874163,-300.0,0.00018977,2]
[376377592,1753954874185,-70.50760619,0.00018977,2]
[376377593,1753954875691,-229.49239381,0.00018977,2]
[376377594,1753954875712,-381.50760619,0.00018977,2]
[376377595,1753954877307,-194.03965153,0.00018977,2]
[376377596,1753954881530,-354.03965153,0.00018977,2]
[376377597,1753954883337,-160.0,0.00018977,2]
[376377598,1753954883637,5000.0,0.0001882,2]
[376377599,1753954886731,-110.41309075,0.00018977,2]
[376377600,1753954886755,-40.7922734,0.00018978,2]
[376377601,1753954888366,-266.97811868,0.00018978,2]
[376377602,1753954892416,-285.31768525,0.00018977,2]
[376377603,1753954894761,-388.79463585,0.00018977,2]
[376377604,1753954897541,-239.90129762,0.00018977,2]
[376377605,1753954899111,5000.0,0.0001882,2]
[376377606,1753954914698,5000.0,0.0001882,2]
[376377607,1753954930291,5000.0,0.0001882,2]
[376377608,1753954946175,5000.0,0.0001882,2]
[376377613,1753954962134,5000.0,0.0001882,2]
[376377614,1753954977916,162.91049074,0.0001882,2]
[376377615,1753955150255,-159.31301254,0.000189,2]
[376377616,1753955152617,-143.41456291,0.000189,2]
[376377617,1753955152640,-368.85298293,0.000189,2]
[376377618,1753955158169,-257.779812,0.000189,2]
[376377619,1753955161703,-48.5034015,0.000189,2]
[376377620,1753955162875,176.62396196,0.0001882,2]
[376377621,1753955162901,752.73640842,0.0001882,2]
[376377622,1753955183248,225.12736346,0.0001882,2]
[376377623,1753955200212,-188.96652356,0.00018976,2]
[376377626,1753955341277,24900.0,0.00018059,2]
[376377627,1753955341899,-175.00958264,0.00018877,2]
[376377628,1753955355603,222.99295668,0.0001882,2]
[376377681,1753955432617,-465.0,0.00018977,2]
[376377684,1753955432628,-98.59587031,0.00018977,2]
[376377696,1753955432736,-201.40412969,0.00018977,2]
[376377699,1753955432749,-300.0,0.00018977,2]
[376377702,1753955432761,-300.0,0.00018977,2]
[376377705,1753955432773,-303.28473366,0.00018977,2]
[376377709,1753955432788,-535.94791132,0.00018977,2]
[376377731,1753955432942,-354.21641806,0.00018977,2]
[376377739,1753955433009,-6.55093696,0.00018977,2]
[376377741,1753955433019,-849.46487876,0.00018978,2]
[376377743,1753955433030,-155.0,0.00018978,2]
[376377746,1753955433043,-257.20599177,0.00018978,2]
[376377969,1753955440253,-1353.1442974,0.00018978,2]
[376377976,1753955440305,-276.96762463,0.00018978,2]
[376377995,1753955440467,-8979.1275,0.00018978,2]
[376377997,1753955440482,-14526.46008347,0.00018978,2]
[376377999,1753955440492,-2518.47386801,0.00019073,2]
[376378002,1753955440501,-175.00958263,0.00019078,2]
[376378003,1753955440510,-500.0,0.00019173,2]
[376378005,1753955440520,-501.03038797,0.00019173,2]
[376378007,1753955440529,-370.9975937,0.00019173,2]
[376378009,1753955440539,-524.81598164,0.00019173,2]
[376378012,1753955440549,-502.28091123,0.00019173,2]
[376378014,1753955440559,-505.44698061,0.00019173,2]
[376378016,1753955440568,-500.0,0.00019173,2]
[376378017,1753955440577,-460.0,0.00019178,2]
[376378019,1753955440586,-460.0,0.00019178,2]
[376378021,1753955440596,-460.0,0.00019178,2]
[376378023,1753955440605,-460.0,0.00019178,2]
[376378025,1753955440614,-460.0,0.00019178,2]
[376378027,1753955440623,-460.0,0.00019178,2]
[376378029,1753955440633,-460.0,0.00019178,2]
[376378031,1753955440643,-460.0,0.00019178,2]
[376378033,1753955440652,-460.0,0.00019178,2]
[376378035,1753955440662,-460.0,0.00019178,2]
[376378037,1753955440671,-460.0,0.00019178,2]
[376378040,1753955440681,-460.0,0.00019178,2]
[376378042,1753955440690,-460.0,0.00019178,2]
[376378045,1753955440701,-460.0,0.00019178,2]
[376378047,1753955440710,-460.0,0.00019178,2]
[376378049,1753955440719,-460.0,0.00019178,2]
[376378051,1753955440729,-410.64083214,0.00019178,2]
[376378053,1753955440739,-460.0,0.00019178,2]
[376378055,1753955440749,-460.0,0.00019178,2]
[376378057,1753955440758,-460.0,0.00019178,2]
[376378059,1753955440768,-460.0,0.00019178,2]
[376378061,1753955440777,-460.0,0.00019178,2]
[376378063,1753955440786,-460.0,0.00019178,2]
[376378065,1753955440795,-460.0,0.00019178,2]
[376378067,1753955440804,-460.0,0.00019178,2]
[376378069,1753955440814,-460.0,0.00019178,2]
[376378071,1753955440822,-460.0,0.00019178,2]
[376378073,1753955440831,-504.89584537,0.00019178,2]
[376378074,1753955440840,-460.0,0.00019178,2]
[376378077,1753955440850,-460.0,0.00019178,2]
[376378079,1753955440859,-591.1908632,0.00019178,2]
[376378081,1753955440868,-460.0,0.00019178,2]
[376378083,1753955440877,-460.0,0.00019178,2]
[376378084,1753955440887,-460.0,0.00019178,2]
[376378087,1753955440897,-460.0,0.00019178,2]
[376378088,1753955440913,-500.0,0.00019178,2]
[376378091,1753955440923,-460.0,0.00019178,2]
[376378092,1753955440932,-547.24,0.00019178,2]
[376378094,1753955440941,-460.0,0.00019178,2]
[376378096,1753955440950,-460.0,0.00019178,2]
[376378098,1753955440959,-329.07869915,0.00019178,2]
[376378100,1753955440968,-460.0,0.00019178,2]
[376378102,1753955440978,-460.0,0.00019178,2]
[376378104,1753955440992,-460.0,0.00019178,2]
[376378106,1753955441001,-460.0,0.00019178,2]
[376378108,1753955441010,-460.0,0.00019178,2]
[376378110,1753955441020,-460.0,0.00019178,2]
[376378112,1753955441029,-460.0,0.00019178,2]
[376378115,1753955441039,-460.0,0.00019178,2]
[376378117,1753955441049,-335.36832875,0.00019178,2]
[376378119,1753955441058,-460.0,0.00019178,2]
[376378120,1753955441068,-460.0,0.00019178,2]
[376378123,1753955441078,-460.0,0.00019178,2]
[376378125,1753955441087,-460.0,0.00019178,2]
[376378127,1753955441096,-460.0,0.00019178,2]
[376378128,1753955441105,-460.0,0.00019178,2]
[376378131,1753955441115,-460.0,0.00019178,2]
[376378132,1753955441124,-460.0,0.00019178,2]
[376378134,1753955441133,-460.0,0.00019178,2]
[376378137,1753955441142,-216.24187738,0.00019178,2]
[376378138,1753955441151,-460.0,0.00019178,2]
[376378141,1753955441161,-460.0,0.00019178,2]
[376378143,1753955441171,-460.0,0.00019178,2]
[376378145,1753955441180,-460.0,0.00019178,2]
[376378147,1753955441188,-460.0,0.00019178,2]
[376378149,1753955441197,-460.0,0.00019178,2]
[376378150,1753955441207,-460.0,0.00019178,2]
[376378152,1753955441216,-460.0,0.00019178,2]
[376378154,1753955441225,-460.0,0.00019178,2]
[376378156,1753955441235,-460.0,0.00019178,2]
[376378158,1753955441244,-460.0,0.00019178,2]
[376378160,1753955441253,-460.0,0.00019178,2]
[376378163,1753955441263,-460.0,0.00019178,2]
[376378165,1753955441273,-460.0,0.00019178,2]
[376378167,1753955441282,-460.0,0.00019178,2]
[376378168,1753955441291,-589.58148891,0.00019178,2]
[376378170,1753955441300,-549.51656381,0.00019178,2]
[376378172,1753955441309,-460.0,0.00019178,2]
[376378174,1753955441318,-460.0,0.00019178,2]
[376378176,1753955441327,-460.0,0.00019178,2]
[376378178,1753955441336,-605.76887846,0.00019178,2]